fUSD/lending_fUSD_20250806
["ID","MTS","AMOUNT","RATE_DAILY","PERIOD"]
[377568474,1754445040753,-9125.63,0.00035,20]
[377568475,1754445040763,-900.0,0.00035,36]
[377568476,1754445040774,-152.0,0.00035155,6]
[377568477,1754445040783,-970.75,0.00035293,2]
[377568478,1754445040793,-25537.7,0.000354,14]
[377568479,1754445040806,-514.0,0.00035423,16]
[377568480,1754445040824,-151.02516087,0.00035516,2]
[377568481,1754445040838,-151.02516086,0.00035585,2]
[377568482,1754445040848,-500.0,0.00035609,2]
[377568483,1754445040863,-1496.37129051,0.00035613,2]
[377568484,1754445040881,-1000.0,0.00035615,2]
[377568485,1754445040891,-625.0,0.00035615,2]
[377568486,1754445040904,-5445.35661712,0.00035616,2]
[377568487,1754445040914,-707433.58952278,0.00035616,2]
[377568488,1754445040923,-400.0,0.00035616,14]
[377568489,1754445040933,-530.0,0.00035616,14]
[377568490,1754445040942,-523.96695266,0.00035616,14]
[377568491,1754445040951,-400.0,0.00035616,14]
[377568492,1754445040960,-400.0,0.00035616,14]
[377568493,1754445040970,-400.0,0.00035616,14]
[377568494,1754445040980,-400.0,0.00035616,14]
[377568495,1754445040990,-400.0,0.00035616,14]
[377568496,1754445041000,-400.0,0.00035616,14]
[377568497,1754445041009,-317.43529961,0.00035616,14]
[377568498,1754445041020,-314.77264355,0.00035616,14]
[377568499,1754445041029,-400.0,0.00035616,14]
[377568500,1754445041039,-400.0,0.00035616,14]
[377568501,1754445041048,-400.0,0.00035616,14]
[377568502,1754445041057,-400.0,0.00035616,14]
[377568503,1754445041066,-400.0,0.00035616,14]
[377568504,1754445041076,-400.0,0.00035616,14]
[377568505,1754445041085,-400.0,0.00035616,14]
[377568506,1754445041095,-400.0,0.00035616,14]
[377568507,1754445041105,-151.0,0.00035616,7]
[377568508,1754445041114,-400.0,0.00035616,14]
[377568509,1754445041124,-400.0,0.00035616,14]
[377568510,1754445041134,-400.0,0.00035616,14]
[377568511,1754445041143,-400.0,0.00035616,14]
[377568512,1754445041153,-400.0,0.00035616,14]
[377568513,1754445041163,-400.0,0.00035616,14]
[377568514,1754445041172,-400.0,0.00035616,14]
[377568515,1754445041183,-400.0,0.00035616,14]
[377568516,1754445041192,-400.0,0.00035616,14]
[377568517,1754445041202,-400.0,0.00035616,14]
[377568518,1754445041212,-400.0,0.00035616,14]
[377568519,1754445041221,-400.0,0.00035616,14]
[377568520,1754445041230,-400.68384585,0.00035616,14]
[377568521,1754445041239,-400.0,0.00035616,14]
[377568522,1754445041249,-400.0,0.00035616,14]
[377568523,1754445041258,-400.0,0.00035616,2]
[377568524,1754445041268,-400.0,0.00035616,14]
[377568525,1754445041278,-400.0,0.00035616,14]
[377568526,1754445041287,-159.244888,0.00035616,7]
[377568527,1754445041296,-400.0,0.00035616,14]
[377568528,1754445041306,-151.0,0.00035616,7]
[377568529,1754445041315,-402.26832139,0.00035616,14]
[377568530,1754445041324,-400.0,0.00035616,14]
[377568531,1754445041333,-428.777142,0.00035616,7]
[377568532,1754445041342,-400.0,0.00035616,14]
[377568533,1754445041351,-428.777142,0.00035616,7]
[377568534,1754445041360,-400.0,0.00035616,14]
[377568535,1754445041369,-400.0,0.00035616,14]
[377568536,1754445041378,-400.0,0.00035616,14]
[377568537,1754445041387,-1093.16,0.00035616,14]
[377568538,1754445041396,-392.13465361,0.00035616,14]
[377568539,1754445041405,-800.2,0.00035616,14]
[377568540,1754445041414,-400.0,0.00035616,14]
[377568541,1754445041423,-400.0,0.00035616,14]
[377568542,1754445041432,-400.0,0.00035616,14]
[377568543,1754445041442,-549.39,0.00035616,14]
[377568544,1754445041452,-1040.46,0.00035616,14]
[377568545,1754445041461,-400.0,0.00035616,14]
[377568546,1754445041470,-618.77,0.00035616,14]
[377568547,1754445041480,-400.0,0.00035616,14]
[377568548,1754445041490,-401.05535918,0.00035616,14]
[377568549,1754445041499,-365.19684509,0.00035616,14]
[377568550,1754445041508,-400.0,0.00035616,14]
[377568551,1754445041518,-1828.13,0.00035616,14]
[377568552,1754445041527,-463.3,0.00035616,14]
[377568553,1754445041536,-400.0,0.00035616,14]
[377568554,1754445041545,-400.0,0.00035616,14]
[377568555,1754445041554,-400.0,0.00035616,14]
[377568556,1754445041564,-2382.06,0.00035616,14]
[377568557,1754445041573,-400.0,0.00035616,14]
[377568558,1754445041582,-400.0,0.00035616,14]
[377568559,1754445041591,-400.0,0.00035616,14]
[377568560,1754445041601,-400.0,0.00035616,14]
[377568561,1754445041610,-1551.34,0.00035616,14]
[377568562,1754445041619,-1555.79,0.00035616,14]
[377568563,1754445041628,-1562.0,0.00035616,14]
[377568564,1754445041638,-400.0,0.00035616,14]
[377568565,1754445041648,-400.0,0.00035616,14]
[377568566,1754445041658,-400.85757494,0.00035616,14]
[377568567,1754445041667,-1037.33,0.00035616,14]
[377568568,1754445041676,-400.0,0.00035616,5]
[377568569,1754445041686,-607.17,0.00035616,14]
[377568570,1754445041695,-400.0,0.00035616,14]
[377568571,1754445041704,-400.0,0.00035616,14]
[377568572,1754445041714,-400.0,0.00035616,14]
[377568573,1754445041723,-400.0,0.00035616,14]
[377568574,1754445041733,-239.70178266,0.00035616,14]
[377568575,1754445041742,-400.0,0.00035616,14]
[377568576,1754445041751,-400.0,0.00035616,14]
[377568577,1754445041761,-671.19,0.00035616,14]
[377568578,1754445041770,-400.0,0.00035616,14]
[377568579,1754445041779,-538.42,0.00035616,14]
[377568580,1754445041789,-400.0,0.00035616,14]
[377568581,1754445041798,-1423.6,0.00035616,14]
[377568582,1754445041807,-400.0,0.00035616,14]
[377568583,1754445041818,-642.19,0.00035616,14]
[377568584,1754445041828,-465.3,0.00035616,14]
[377568585,1754445041839,-400.0,0.00035616,14]
[377568586,1754445041849,-400.0,0.00035616,14]
[377568587,1754445042210,-400.0,0.00035616,14]
[377568588,1754445042250,-817.53,0.00035616,14]
[377568589,1754445042264,-407.81,0.00035616,14]
[377568590,1754445042273,-400.0,0.00035616,14]
[377568591,1754445042282,-400.0,0.00035616,14]
[377568592,1754445042291,-400.0,0.00035616,14]
[377568593,1754445042302,-400.0,0.00035616,2]
[377568594,1754445042311,-507.16,0.00035616,14]
[377568595,1754445042320,-400.0,0.00035616,14]
[377568596,1754445042329,-400.0,0.00035616,14]
[377568597,1754445042338,-482.44,0.00035616,14]
[377568598,1754445042347,-400.0,0.00035616,14]
[377568599,1754445042356,-400.0,0.00035616,14]
[377568600,1754445042365,-556.12,0.00035616,14]
[377568601,1754445042375,-400.0,0.00035616,14]
[377568602,1754445042384,-554.87,0.00035616,14]
[377568603,1754445042393,-400.0,0.00035616,14]
[377568604,1754445042402,-400.0,0.00035616,14]
[377568605,1754445042412,-400.0,0.00035616,14]
[377568606,1754445042421,-400.0,0.00035616,14]
[377568607,1754445042430,-400.0,0.00035616,14]
[377568608,1754445042439,-400.0,0.00035616,14]
[377568609,1754445042449,-400.0,0.00035616,14]
[377568610,1754445042458,-400.0,0.00035616,14]
[377568611,1754445042467,-400.0,0.00035616,14]
[377568612,1754445042476,-400.0,0.00035616,14]
[377568613,1754445042485,-1341.76,0.00035616,14]
[377568614,1754445042495,-400.70172953,0.00035616,14]
[377568615,1754445042504,-776.19,0.00035616,14]
[377568616,1754445042513,-400.0,0.00035616,14]
[377568617,1754445042522,-400.0,0.00035616,14]
[377568618,1754445042532,-400.0,0.00035616,14]
[377568619,1754445042542,-401.75428793,0.00035616,14]
[377568620,1754445042551,-470.14,0.00035616,14]
[377568621,1754445042560,-400.0,0.00035616,14]
[377568622,1754445042569,-400.0,0.00035616,14]
[377568623,1754445042579,-400.0,0.00035616,14]
[377568624,1754445042589,-1323.57,0.00035616,14]
[377568625,1754445042598,-400.0,0.00035616,14]
[377568626,1754445042608,-400.0,0.00035616,14]
[377568627,1754445042618,-400.0,0.00035616,14]
[377568628,1754445042628,-334.82878853,0.00035616,14]
[377568629,1754445042637,-461.32394826,0.00035616,14]
[377568630,1754445042647,-1503.27,0.00035616,14]
[377568631,1754445042657,-400.0,0.00035616,14]
[377568632,1754445042667,-1141.48,0.00035616,14]
[377568633,1754445042676,-1119.61,0.00035616,14]
[377568634,1754445042685,-335.34429961,0.00035616,14]
[377568635,1754445042696,-401.0553281,0.00035616,14]
[377568636,1754445042705,-1078.09,0.00035616,14]
[377568637,1754445042715,-400.0,0.00035616,14]
[377568638,1754445042724,-1449.51,0.00035616,14]
[377568639,1754445042733,-400.0,0.00035616,14]
[377568640,1754445042743,-400.0,0.00035616,14]
[377568641,1754445042753,-400.0,0.00035616,14]
[377568642,1754445042762,-400.0,0.00035616,14]
[377568643,1754445042773,-400.0,0.00035616,14]
[377568644,1754445042783,-400.0,0.00035616,14]
[377568645,1754445042795,-400.0,0.00035616,14]
[377568646,1754445042805,-400.0,0.00035616,14]
[377568647,1754445042816,-1713.36,0.00035616,14]
[377568648,1754445042827,-589.39,0.00035616,14]
[377568649,1754445042836,-401.74923344,0.00035616,14]
[377568650,1754445042846,-400.0,0.00035616,14]
[377568651,1754445042856,-466.59,0.00035616,14]
[377568652,1754445042866,-904.53,0.00035616,14]
[377568653,1754445042876,-2898.63,0.00035616,14]
[377568654,1754445042885,-400.0,0.00035616,14]
[377568655,1754445042896,-400.0,0.00035616,14]
[377568656,1754445042907,-384.22716751,0.00035616,14]
[377568657,1754445042916,-365.93052518,0.00035616,14]
[377568658,1754445042926,-400.0,0.00035616,14]
[377568659,1754445042936,-400.0,0.00035616,14]
[377568660,1754445042945,-400.0,0.00035616,14]
[377568661,1754445042955,-400.0,0.00035616,14]
[377568662,1754445042964,-1559.97,0.00035616,14]
[377568663,1754445042974,-1845.55,0.00035616,14]
[377568664,1754445042983,-2002.24,0.00035616,14]
[377568665,1754445042992,-2734.57,0.00035616,14]
[377568666,1754445043001,-400.0,0.00035616,14]
[377568667,1754445043011,-400.0,0.00035616,14]
[377568668,1754445043020,-424.18,0.00035616,14]
[377568669,1754445043030,-521.33,0.00035616,14]
[377568670,1754445043040,-400.0,0.00035616,14]
[377568671,1754445043049,-837.62,0.00035616,14]
[377568672,1754445043063,-400.0,0.00035616,14]
[377568673,1754445043073,-400.0,0.00035616,14]
[377568674,1754445043083,-400.0,0.00035616,14]
[377568675,1754445043093,-710.32,0.00035616,14]
[377568676,1754445043104,-400.0,0.00035616,14]
[377568677,1754445043114,-1501.67,0.00035616,14]
[377568678,1754445043124,-400.0,0.00035616,14]
[377568679,1754445043134,-1946.53,0.00035616,14]
[377568680,1754445043144,-400.0,0.00035616,14]
[377568681,1754445043154,-917.13,0.00035616,14]
[377568682,1754445043163,-400.0,0.00035616,14]
[377568683,1754445043175,-400.0,0.00035616,14]
[377568684,1754445043186,-400.0,0.00035616,14]
[377568685,1754445043196,-400.0,0.00035616,14]
[377568686,1754445043205,-400.0,0.00035616,14]
[377568687,1754445043215,-400.0,0.00035616,14]
[377568688,1754445043224,-2201.64,0.00035616,14]
[377568689,1754445043234,-400.0,0.00035616,14]
[377568690,1754445043244,-400.0,0.00035616,14]
[377568691,1754445043254,-789.36,0.00035616,14]
[377568692,1754445043264,-400.0,0.00035616,14]
[377568693,1754445043274,-1035.11,0.00035616,14]
[377568694,1754445043284,-400.0,0.00035616,14]
[377568695,1754445043294,-400.0,0.00035616,14]
[377568696,1754445043305,-400.0,0.00035616,14]
[377568697,1754445043322,-400.0,0.00035616,14]
[377568698,1754445043333,-651.23,0.00035616,14]
[377568699,1754445043343,-400.0,0.00035616,14]
[377568700,1754445043354,-2099.0,0.00035616,14]
[377568701,1754445043364,-400.0,0.00035616,14]
[377568702,1754445043374,-407.41982844,0.00035616,14]
[377568703,1754445043383,-592.11,0.00035616,14]
[377568704,1754445043393,-422.23,0.00035616,14]
[377568705,1754445043403,-400.0,0.00035616,14]
[377568706,1754445043412,-400.0,0.00035616,14]
[377568707,1754445043422,-400.0,0.00035616,14]
[377568708,1754445043432,-400.0,0.00035616,14]
[377568709,1754445043442,-400.0,0.00035616,14]
[377568710,1754445043451,-1646.02,0.00035616,14]
[377568711,1754445043461,-400.0,0.00035616,14]
[377568712,1754445043471,-1797.61,0.00035616,14]
[377568713,1754445043480,-1194.38,0.00035616,14]
[377568714,1754445043489,-896.94,0.00035616,14]
[377568715,1754445043499,-701.55,0.00035616,14]
[377568716,1754445043509,-1788.93,0.00035616,14]
[377568717,1754445043523,-400.0,0.00035616,14]
[377568718,1754445043533,-400.0,0.00035616,14]
[377568719,1754445043543,-768.55,0.00035616,14]
[377568720,1754445043552,-400.0,0.00035616,14]
[377568721,1754445043562,-1062.63,0.00035616,14]
[377568722,1754445043573,-985.9,0.00035616,14]
[377568723,1754445043583,-947.7,0.00035616,14]
[377568724,1754445043593,-400.0,0.00035616,14]
[377568725,1754445043603,-1163.17,0.00035616,14]
[377568726,1754445043613,-1794.14,0.00035616,14]
[377568727,1754445043623,-400.0,0.00035616,14]
[377568728,1754445043634,-400.0,0.00035616,14]
[377568729,1754445043644,-739.15,0.00035616,14]
[377568730,1754445043654,-400.0,0.00035616,14]
[377568731,1754445043664,-1094.35,0.00035616,14]
[377568732,1754445043674,-1344.81,0.00035616,14]
[377568733,1754445043683,-400.48406449,0.00035616,14]
[377568734,1754445043693,-405.78,0.00035616,14]
[377568735,1754445043703,-446.26,0.00035616,14]
[377568736,1754445043713,-967.91,0.00035616,14]
[377568737,1754445043723,-400.0,0.00035616,14]
[377568738,1754445043732,-1173.64,0.00035616,14]
[377568739,1754445043743,-2109.91,0.00035616,14]
[377568740,1754445043753,-2203.77,0.00035616,14]
[377568741,1754445043763,-465.61683648,0.00035616,14]
[377568742,1754445043774,-811.64,0.00035616,14]
[377568743,1754445043785,-400.0,0.00035616,14]
[377568744,1754445043795,-400.0,0.00035616,14]
[377568745,1754445043806,-400.0,0.00035616,14]
[377568746,1754445043818,-400.0,0.00035616,14]
[377568747,1754445043828,-400.0,0.00035616,14]
[377568748,1754445043838,-400.0,0.00035616,14]
[377568749,1754445043849,-400.0,0.00035616,14]
[377568750,1754445043864,-400.91253076,0.00035616,14]
[377568751,1754445043874,-400.0,0.00035616,14]
[377568752,1754445043886,-400.0,0.00035616,14]
[377568753,1754445043897,-469.16,0.00035616,14]
[377568754,1754445043908,-400.0,0.00035616,14]
[377568755,1754445043918,-400.0,0.00035616,14]
[377568756,1754445043928,-400.36200891,0.00035616,14]
[377568757,1754445043938,-400.0,0.00035616,14]
[377568758,1754445043949,-923.75,0.00035616,14]
[377568759,1754445043959,-484.52472931,0.00035616,14]
[377568760,1754445043973,-400.0,0.00035616,14]
[377568761,1754445043984,-400.0,0.00035616,14]
[377568762,1754445043993,-400.0,0.00035616,14]
[377568763,1754445044004,-400.0,0.00035616,14]
[377568764,1754445044015,-554.71,0.00035616,14]
[377568765,1754445044025,-604.15,0.00035616,14]
[377568766,1754445044036,-494.91,0.00035616,14]
[377568767,1754445044046,-400.0,0.00035616,14]
[377568768,1754445044056,-400.0,0.00035616,14]
[377568769,1754445044066,-666.51,0.00035616,14]
[377568770,1754445044077,-400.0,0.00035616,14]
[377568771,1754445044087,-400.0,0.00035616,14]
[377568772,1754445044098,-400.0,0.00035616,14]
[377568773,1754445044108,-400.0,0.00035616,14]
[377568774,1754445044117,-1810.36,0.00035616,14]
[377568775,1754445044127,-1585.43,0.00035616,14]
[377568776,1754445044138,-400.30889978,0.00035616,14]
[377568777,1754445044148,-400.0,0.00035616,14]
[377568778,1754445044158,-937.59,0.00035616,14]
[377568779,1754445044168,-400.0,0.00035616,14]
[377568780,1754445044178,-1765.04,0.00035616,14]
[377568781,1754445044188,-400.0,0.00035616,14]
[377568782,1754445044198,-662.56,0.00035616,14]
[377568783,1754445044207,-400.0,0.00035616,14]
[377568784,1754445044217,-1884.93,0.00035616,14]
[377568785,1754445044227,-2173.18,0.00035616,14]
[377568786,1754445044237,-426.54,0.00035616,14]
[377568787,1754445044247,-400.0,0.00035616,14]
[377568788,1754445044258,-400.0,0.00035616,14]
[377568789,1754445044267,-400.0,0.00035616,14]
[377568790,1754445044277,-1051.98,0.00035616,14]
[377568791,1754445044286,-400.0,0.00035616,14]
[377568792,1754445044296,-400.0,0.00035616,14]
[377568793,1754445044306,-638.49,0.00035616,14]
[377568794,1754445044315,-400.0,0.00035616,7]
[377568795,1754445044325,-400.0,0.00035616,14]
[377568796,1754445044335,-400.0,0.00035616,14]
[377568797,1754445044344,-505.05,0.00035616,14]
[377568798,1754445044354,-400.0,0.00035616,14]
[377568799,1754445044364,-400.0,0.00035616,14]
[377568800,1754445044374,-823.45,0.00035616,14]
[377568801,1754445044384,-1186.37,0.00035616,14]
[377568802,1754445044394,-400.0,0.00035616,14]
[377568803,1754445044405,-885.84,0.00035616,14]
[377568804,1754445044415,-716.14,0.00035616,14]
[377568805,1754445044425,-1446.43,0.00035616,14]
[377568806,1754445044435,-168.87073082,0.00035616,2]
[377568807,1754445044449,-992.97,0.00035616,14]
[377568808,1754445044458,-400.0,0.00035616,14]
[377568809,1754445044468,-1008.6,0.00035616,14]
[377568810,1754445044478,-400.0,0.00035616,14]
[377568811,1754445044488,-400.0,0.00035616,14]
[377568812,1754445044499,-400.0,0.00035616,14]
[377568813,1754445044508,-1537.35,0.00035616,14]
[377568814,1754445044519,-763.76,0.00035616,14]
[377568815,1754445044529,-594.52,0.00035616,14]
[377568816,1754445044540,-620.62,0.00035616,14]
[377568817,1754445044550,-400.0,0.00035616,14]
[377568818,1754445044560,-2033.15,0.00035616,14]
[377568819,1754445044570,-607.47,0.00035616,14]
[377568820,1754445044579,-400.0,0.00035616,14]
[377568821,1754445044589,-400.0,0.00035616,14]
[377568822,1754445044599,-475.13,0.00035616,14]
[377568823,1754445044609,-1085.12,0.00035616,14]
[377568824,1754445044619,-400.0,0.00035616,14]
[377568825,1754445044628,-1246.56,0.00035616,14]
[377568826,1754445044638,-1188.02,0.00035616,14]
[377568827,1754445044648,-400.0,0.00035616,14]
[377568828,1754445044657,-1141.08,0.00035616,14]
[377568829,1754445044667,-860.58,0.00035616,14]
[377568830,1754445044677,-2113.04,0.00035616,14]
[377568831,1754445044687,-1843.9,0.00035616,14]
[377568832,1754445044697,-400.0,0.00035616,14]
[377568833,1754445044706,-400.18827001,0.00035616,14]
[377568834,1754445044717,-400.0,0.00035616,14]
[377568835,1754445044727,-400.0,0.00035616,14]
[377568836,1754445044736,-909.95,0.00035616,14]
[377568837,1754445044746,-400.0,0.00035616,14]
[377568838,1754445044982,-400.0,0.00035616,14]
[377568839,1754445044993,-400.0,0.00035616,14]
[377568840,1754445045002,-400.0,0.00035616,14]
[377568841,1754445045012,-3266.12,0.00035616,14]
[377568842,1754445045023,-1391.51,0.00035616,14]
[377568843,1754445045032,-719.58,0.00035616,14]
[377568844,1754445045042,-1913.41,0.00035616,14]
[377568845,1754445045051,-400.0,0.00035616,14]
[377568846,1754445045061,-400.0,0.00035616,14]
[377568847,1754445045071,-511.19,0.00035616,14]
[377568848,1754445045080,-400.0,0.00035616,14]
[377568849,1754445045089,-400.0,0.00035616,14]
[377568850,1754445045099,-400.0,0.00035616,14]
[377568851,1754445045108,-503.5,0.00035616,14]
[377568852,1754445045118,-400.0,0.00035616,14]
[377568853,1754445045128,-3399.61,0.00035616,14]
[377568854,1754445045137,-400.0,0.00035616,14]
[377568855,1754445045147,-400.0,0.00035616,14]
[377568856,1754445045156,-1788.17,0.00035616,14]
[377568857,1754445045166,-488.85,0.00035616,14]
[377568858,1754445045175,-1956.52,0.00035616,14]
[377568859,1754445045185,-400.0,0.00035616,14]
[377568860,1754445045194,-1411.45,0.00035616,14]
[377568861,1754445045204,-400.0,0.00035616,14]
[377568862,1754445045214,-400.0,0.00035616,14]
[377568863,1754445045224,-400.0,0.00035616,14]
[377568864,1754445045233,-647.61,0.00035616,14]
[377568865,1754445045242,-400.0,0.00035616,14]
[377568866,1754445045251,-400.0,0.00035616,14]
[377568867,1754445045261,-400.0,0.00035616,14]
[377568868,1754445045272,-406.83347487,0.00035616,14]
[377568869,1754445045282,-546.47,0.00035616,14]
[377568870,1754445045291,-1985.89,0.00035616,14]
[377568871,1754445045301,-400.0,0.00035616,14]
[377568872,1754445045311,-690.81,0.00035616,14]
[377568873,1754445045320,-985.67,0.00035616,14]
[377568874,1754445045330,-400.0,0.00035616,14]
[377568875,1754445045339,-248.85155264,0.00035616,14]
[377568876,1754445045348,-274.64139615,0.00035616,14]
[377568877,1754445045358,-531.05,0.00035616,14]
[377568878,1754445045367,-959.45,0.00035616,14]
[377568879,1754445045376,-400.0,0.00035616,14]
[377568880,1754445045386,-2195.08,0.00035616,14]
[377568881,1754445045395,-400.0,0.00035616,14]
[377568882,1754445045405,-672.57,0.00035616,14]
[377568883,1754445045414,-1247.88,0.00035616,14]
[377568884,1754445045423,-400.0,0.00035616,14]
[377568885,1754445045432,-175.15787008,0.00035616,14]
[377568886,1754445045441,-585.25,0.00035616,14]
[377568887,1754445045451,-400.0,0.00035616,14]
[377568888,1754445045460,-400.0,0.00035616,14]
[377568889,1754445045469,-400.0,0.00035616,14]
[377568890,1754445045478,-2434.27,0.00035616,14]
[377568891,1754445045487,-400.0,0.00035616,14]
[377568892,1754445045497,-400.0,0.00035616,14]
[377568893,1754445045506,-400.0,0.00035616,14]
[377568894,1754445045515,-1651.3,0.00035616,14]
[377568895,1754445045528,-1867.25,0.00035616,14]
[377568896,1754445045537,-400.0,0.00035616,14]
[377568897,1754445045547,-1041.88,0.00035616,14]
[377568898,1754445045556,-1301.09,0.00035616,14]
[377568899,1754445045566,-400.0,0.00035616,14]
[377568900,1754445045576,-400.0,0.00035616,14]
[377568901,1754445045586,-404.9,0.00035616,14]
[377568902,1754445045596,-1903.84,0.00035616,14]
[377568903,1754445045610,-519.19,0.00035616,14]
[377568904,1754445045620,-400.0,0.00035616,14]
[377568905,1754445045630,-511.74,0.00035616,14]
[377568906,1754445045640,-400.0,0.00035616,14]
[377568907,1754445045650,-500.64,0.00035616,14]
[377568908,1754445045660,-400.0,0.00035616,14]
[377568909,1754445045669,-627.73,0.00035616,14]
[377568910,1754445045678,-400.0,0.00035616,14]
[377568911,1754445045687,-400.0,0.00035616,14]
[377568912,1754445045697,-500.0,0.00035616,14]
[377568913,1754445045706,-1050.13,0.00035616,14]
[377568914,1754445045716,-400.0,0.00035616,14]
[377568915,1754445045725,-851.23,0.00035616,14]
[377568916,1754445045735,-1371.38,0.00035616,14]
[377568917,1754445045744,-400.0,0.00035616,14]
[377568918,1754445045754,-400.0,0.00035616,14]
[377568919,1754445045763,-916.61,0.00035616,14]
[377568920,1754445045774,-653.65,0.00035616,14]
[377568921,1754445045783,-400.0,0.00035616,14]
[377568922,1754445045793,-732.25,0.00035616,14]
[377568923,1754445045803,-1116.51,0.00035616,14]
[377568924,1754445045813,-400.0,0.00035616,14]
[377568925,1754445045826,-590.74,0.00035616,2]
[377568926,1754445045836,-400.0,0.00035616,14]
[377568927,1754445045845,-475.92,0.00035616,14]
[377568928,1754445045855,-400.0,0.00035616,14]
[377568929,1754445045864,-770.34,0.00035616,14]
[377568930,1754445045874,-591.46,0.00035616,14]
[377568931,1754445045884,-400.0,0.00035616,14]
[377568932,1754445045894,-1462.8,0.00035616,14]
[377568933,1754445045903,-400.0,0.00035616,14]
[377568934,1754445045913,-1931.17,0.00035616,14]
[377568935,1754445045922,-1009.21,0.00035616,14]
[377568937,1754445045932,-854.85,0.00035616,14]
[377568939,1754445045942,-854.85,0.00035616,14]
[377568941,1754445045952,-854.85,0.00035616,14]
[377568943,1754445045962,-854.85,0.00035616,14]
[377568945,1754445045971,-854.85,0.00035616,14]
[377568947,1754445045981,-400.0,0.00035616,14]
[377568948,1754445045990,-854.85,0.00035616,14]
[377568949,1754445046000,-854.85,0.00035616,14]
[377568950,1754445046010,-854.85,0.00035616,14]
[377568951,1754445046020,-854.85,0.00035616,14]
[377568952,1754445046030,-523.26,0.00035616,14]
[377568953,1754445046039,-854.85,0.00035616,14]
[377568954,1754445046049,-854.85,0.00035616,14]
[377568955,1754445046058,-854.85,0.00035616,14]
[377568956,1754445046068,-854.85,0.00035616,14]
[377568957,1754445046078,-1049.79,0.00035616,14]
[377568958,1754445046089,-854.85,0.00035616,14]
[377568959,1754445046099,-2930.75,0.00035616,14]
[377568960,1754445046108,-854.85,0.00035616,14]
[377568961,1754445046117,-400.0,0.00035616,14]
[377568962,1754445046127,-854.85,0.00035616,14]
[377568963,1754445046137,-854.85,0.00035616,14]
[377568964,1754445046146,-854.85,0.00035616,14]
[377568965,1754445046156,-854.85,0.00035616,14]
[377568966,1754445046165,-854.85,0.00035616,14]
[377568967,1754445046175,-854.85,0.00035616,14]
[377568968,1754445046184,-854.85,0.00035616,14]
[377568969,1754445046194,-854.85,0.00035616,14]
[377568970,1754445046204,-854.88887589,0.00035616,14]
[377568971,1754445046213,-498.81,0.00035616,14]
[377568972,1754445046222,-434.13,0.00035616,14]
[377568973,1754445046231,-400.0,0.00035616,14]
[377568974,1754445046240,-1830.96,0.00035616,14]
[377568975,1754445046250,-460.72864286,0.00035616,14]
[377568976,1754445046259,-1265.66,0.00035616,14]
[377568977,1754445046269,-400.0,0.00035616,14]
[377568978,1754445046279,-400.0,0.00035616,14]
[377568979,1754445046288,-1290.8,0.00035616,14]